bitfinex/quotes_SOLUSD_20251120
["timestamp","ask_amount","ask_price","bid_price","bid_amount"]
[1763654561016,13.35161733,138.09,138.07,0.1]
[1763654561204,1.84,138.08,138.07,0.1]
[1763654561395,0.57,138.08,138.07,0.1]
[1763654561583,18.12096,138.09,138.07,0.1]
[1763654561787,12.78161733,138.16,138.08,13.48161733]
[1763654561987,1.84,138.15,138.07,0.1]
[1763654562188,15.19161733,138.15,138.07,0.1]
[1763654562385,0.57,138.14,138.07,0.1]
[1763654562624,12.78161733,138.12,138.07,0.1]
[1763654562916,12.78161733,138.09,138.07,0.1]
[1763654563121,19.96096,138.08,138.07,0.1]
[1763654563300,33.31257733,138.08,138.07,0.1]
[1763654563504,20.53096,138.08,138.07,0.1]
[1763654563727,12.78161733,138.09,138.07,0.1]
[1763654563926,18.12096,138.1,138.07,0.1]
[1763654564098,1.84,138.12,138.09,12.78161733]
[1763654564421,0.57,138.16,138.08,0.7]
[1763654564422,0.57,138.16,138.1,12.78161733]
[1763654564594,0.57,138.16,138.12,12.78161733]
[1763654564595,1.84,138.16,138.12,12.78161733]
[1763654564789,1.84,138.16,138.13,12.78161733]
[1763654564994,1.84,138.16,138.11,12.78161733]
[1763654565207,1.84,138.16,138.1,0.7]
[1763654565599,1.84,138.16,138.12,12.78161733]
[1763654565936,1.84,138.16,138.11,12.78161733]
[1763654566132,18.12096,138.15,138.09,7.24159359]
[1763654566298,31.47257733,138.15,138.09,12.78161733]
[1763654566625,18.12096,138.08,138.07,0.1]
[1763654566928,14.62161733,138.08,138.07,0.1]
[1763654567107,15.19161733,138.08,138.07,0.1]
[1763654567306,2.41,138.08,138.07,0.1]
[1763654567525,30.90257733,138.09,138.07,0.1]
[1763654567695,14.62161733,138.08,138.07,0.1]
[1763654567897,13.35161733,138.08,138.07,0.1]
[1763654568228,2.41,138.08,138.07,0.1]
[1763654568392,13.35161733,138.08,138.07,0.1]
[1763654568591,1.84,138.08,138.07,0.1]
[1763654569228,0.57,138.14,138.07,13.58161733]
[1763654569524,1.84,138.13,138.07,0.8]
[1763654569726,30.90257733,138.11,138.07,0.1]
[1763654569894,1.84,138.1,138.07,12.88161733]
[1763654570093,12.78161733,138.14,138.07,0.8]
[1763654570297,1.84,138.13,138.09,12.78161733]
[1763654570725,12.78161733,138.19,138.12,12.78161733]
[1763654570931,12.78161733,138.22,138.17,12.78161733]
[1763654571130,12.78161733,138.18,138.1,0.66]
[1763654571335,18.12096,138.15,138.12,12.78161733]
[1763654571837,18.12096,138.15,138.12,13.44161733]
[1763654572022,1.84,138.14,138.08,0.66]
[1763654572243,1.84,138.14,138.11,12.78161733]
[1763654572551,1.84,138.14,138.08,0.66]
[1763654572927,1.84,138.14,138.1,12.78161733]
[1763654573823,1.84,138.14,138.09,12.78161733]
[1763654574033,1.84,138.13,138.1,12.78161733]
[1763654574517,1.84,138.13,138.08,7.90210412]
[1763654574722,1.84,138.13,138.1,12.78161733]
[1763654574921,18.12096,138.14,138.12,12.78161733]
[1763654575122,18.12096,138.15,138.12,12.78161733]
[1763654575325,7.23641363,138.19,138.08,7.24210412]
[1763654575326,18.12096,138.16,138.13,13.44161733]
[1763654575556,19.96096,138.16,138.13,13.44161733]
[1763654576638,19.96096,138.16,138.13,0.66]
[1763654576849,19.96096,138.16,138.13,13.44161733]
[1763654577223,19.96096,138.16,138.13,12.78161733]
[1763654577850,32.59892726,138.23,138.15,12.78161733]
[1763654578063,14.62161733,138.22,138.17,12.78161733]
[1763654578263,18.12096,138.19,138.16,12.78161733]
[1763654578557,12.78161733,138.17,138.07,9.18225821]
[1763654578731,12.78161733,138.17,138.12,12.78161733]
[1763654579136,12.78161733,138.16,138.1,13.44161733]
[1763654579451,9.07892931,138.15,138.1,13.44161733]
[1763654579624,1.84,138.15,138.12,12.78161733]
[1763654579829,30.90257733,138.18,138.12,0.66]
[1763654579830,1.84,138.14,138.12,0.66]
[1763654580029,38.13965615,138.18,138.13,12.78161733]
[1763654580271,2.41,138.17,138.07,0.76]
[1763654580552,18.12096,138.15,138.1,12.78161733]
[1763654580753,21.6,138.19,138.07,0.1]
[1763654580754,12.78161733,138.19,138.11,0.66]
[1763654580952,2.41,138.18,138.11,12.78161733]
[1763654581155,30.90257733,138.17,138.11,12.78161733]
[1763654581362,12.78161733,138.16,138.11,12.78161733]
[1763654581664,18.12096,138.14,138.1,0.66]
[1763654581952,27.17478102,138.15,138.09,12.78161733]
[1763654582129,30.90257733,138.12,138.07,13.54161733]
[1763654582331,1.84,138.11,138.07,0.1]
[1763654582530,14.62161733,138.11,138.07,0.1]
[1763654582754,18.12096,138.12,138.07,13.54161733]
[1763654582954,1.84,138.11,138.07,0.1]
[1763654583132,15.19161733,138.11,138.07,0.1]
[1763654583332,2.41,138.11,138.07,0.1]
[1763654583551,18.12096,138.08,138.07,0.1]
[1763654583756,19.96096,138.08,138.07,0.1]
[1763654585036,18.12096,138.08,138.07,0.1]
[1763654585233,18.12096,138.08,137.97,0.66]
[1763654585234,15.19161733,138.08,137.97,0.66]
[1763654585439,0.47,138.07,137.97,0.66]
[1763654585748,18.12096,138.03,137.99,12.78161733]
[1763654585953,1.84,138.02,137.99,12.78161733]
[1763654586256,1.84,138.02,137.98,12.78161733]
[1763654586458,1.84,138.02,137.97,0.66]
[1763654586628,1.84,138.02,137.98,12.78161733]
[1763654586833,14.62161733,138.02,137.94,0.66]
[1763654587134,20.43096,138.02,137.94,0.66]
[1763654587333,18.12096,137.99,137.94,12.78161733]
[1763654587533,21.6,138.1,137.95,0.66]
[1763654587859,0.47,138.08,137.95,26.03127342]
[1763654588061,0.47,138.08,137.96,9.78882769]
[1763654588375,0.47,138.08,137.97,0.66]
[1763654588376,1.84,138.07,137.97,0.66]
[1763654588556,3.78557132,138.15,137.98,9.78882769]
[1763654588758,0.47,138.16,137.98,11.62882769]
[1763654589064,1.84,138.14,138.0,27.90978769]
[1763654589361,1.84,138.15,138.03,9.78882769]
[1763654589671,30.90257733,138.14,138.05,9.78882769]
[1763654589871,18.12096,138.14,138.09,12.78161733]
[1763654590036,17.4,138.19,138.13,12.78161733]
[1763654590037,1.84,138.16,138.13,12.78161733]
[1763654590371,12.78161733,138.15,138.1,12.78161733]
[1763654590559,1.84,138.16,138.11,12.78161733]
[1763654590764,1.84,138.15,138.14,12.78161733]
[1763654591072,1.84,138.15,138.12,0.66]
[1763654591660,1.84,138.15,138.14,12.78161733]
[1763654591882,1.84,138.15,138.13,12.78161733]
[1763654592165,1.84,138.15,138.12,12.78161733]
[1763654592371,1.84,138.15,138.1,0.66]
[1763654592558,12.78161733,138.14,138.09,12.78161733]
[1763654592748,18.12096,138.12,138.08,0.66]
[1763654592949,12.78161733,138.09,138.01,0.66]
[1763654593152,12.78161733,138.07,138.02,12.78161733]
[1763654593454,32.74257733,138.06,138.01,0.66]
[1763654593652,20.02547484,138.05,138.0,12.78161733]
[1763654593854,32.74257733,138.06,137.99,0.66]
[1763654594161,1.84,138.05,138.03,12.78161733]
[1763654594369,1.84,138.05,137.99,0.66]
[1763654594533,1.84,138.05,138.03,12.78161733]
[1763654594743,1.84,138.05,137.99,0.66]
[1763654594945,18.12096,138.08,138.04,12.78161733]
[1763654595145,18.12096,138.08,138.06,12.78161733]
[1763654595380,18.12096,138.08,138.05,0.66]
[1763654595381,19.96096,138.09,138.07,12.78161733]
[1763654595590,27.20311546,138.09,138.01,7.24585174]
[1763654595873,7.89399733,138.17,138.08,12.78161733]
[1763654595874,20.01960227,138.16,138.08,12.78161733]
[1763654596060,1.84,138.15,138.06,0.66]
[1763654596269,1.84,138.15,138.08,12.78161733]
[1763654596569,18.12096,138.14,138.06,0.66]
[1763654596970,1.84,138.13,138.1,12.78161733]
[1763654597178,1.84,138.13,138.08,13.44161733]
[1763654597495,12.78161733,138.1,138.05,12.78161733]
[1763654597649,20.02379577,138.08,138.02,0.66]
[1763654597981,20.02379577,138.08,138.03,12.78161733]
[1763654598157,12.78161733,138.07,138.02,0.66]
[1763654598357,1.82,138.06,138.02,12.78161733]
[1763654598549,18.12096,138.05,138.02,12.78161733]
[1763654598744,18.12096,138.05,138.02,0.66]
[1763654598969,1.82,138.04,138.02,0.66]
[1763654599269,1.82,138.04,137.95,1.82]
[1763654599270,12.86502759,138.05,138.0,11.70502759]
[1763654599464,12.86502759,138.04,137.98,11.04502759]
[1763654599668,7.24480185,138.03,137.99,11.04502759]
[1763654599854,12.86502759,138.04,137.96,7.9083403]
[1763654599855,1.82,138.02,138.0,11.04502759]
[1763654600055,18.12096,138.05,138.01,11.04502759]
[1763654600244,1.82,138.04,138.01,11.04502759]
[1763654600444,1.82,138.04,138.01,11.72502759]
[1763654600746,18.12096,138.07,138.03,11.04502759]
[1763654600949,1.82,138.06,138.0,0.68]
[1763654601148,1.82,138.06,137.96,1.82]
[1763654601149,12.86502759,138.06,137.96,1.82]
[1763654601388,18.12096,138.04,137.97,0.68]
[1763654601689,9.06519336,138.03,137.97,0.68]
[1763654601895,20.11022095,138.03,137.97,0.68]
[1763654602051,9.06519336,138.03,137.98,11.04502759]
[1763654602251,29.16598759,138.05,138.0,11.04502759]
[1763654602452,29.16598759,138.05,137.97,7.92789354]
[1763654602453,1.82,138.04,137.97,7.92789354]
[1763654602688,18.12096,138.05,138.02,11.04502759]
[1763654602897,1.82,138.03,138.02,11.04502759]
[1763654603179,18.2881104,138.07,138.0,0.68]
[1763654603390,11.04502759,138.07,138.02,11.04502759]
[1763654603554,11.04502759,138.11,138.05,11.04502759]
[1763654603751,12.86502759,138.1,138.05,11.04502759]
[1763654604065,1.82,138.1,138.06,11.72502759]
[1763654604269,1.82,138.09,138.0,9.78882769]
[1763654604449,1.82,138.09,137.98,11.60882769]
[1763654604450,1.82,138.09,138.03,11.04502759]
[1763654604652,1.82,138.09,138.04,11.04502759]
[1763654604653,12.86502759,138.09,138.04,11.04502759]
[1763654604855,1.82,138.08,138.04,11.04502759]
[1763654605090,18.12096,138.07,138.0,0.68]
[1763654605388,11.04502759,138.06,138.0,0.68]
[1763654605576,11.04502759,138.04,137.97,0.68]
[1763654605760,7.24480185,138.03,137.98,11.04502759]
[1763654605982,7.24480185,138.03,137.99,11.04502759]
[1763654606280,1.82,138.02,137.99,11.04502759]
[1763654606586,1.82,138.02,137.99,0.68]
[1763654606761,1.82,138.02,138.0,11.04502759]
[1763654606950,1.82,138.02,137.99,0.68]
[1763654607155,1.82,138.02,137.95,0.68]
[1763654607364,11.04502759,137.98,137.91,0.68]
[1763654607576,1.82,137.97,137.92,11.04502759]
[1763654607775,11.04502759,137.96,137.89,0.68]
[1763654607978,6.66286389,137.95,137.89,0.68]
[1763654608258,1.82,137.95,137.89,0.68]
[1763654608576,4.83843676,137.94,137.91,11.04502759]
[1763654608776,1.82,137.93,137.89,0.68]
[1763654608992,29.16598759,137.97,137.92,11.04502759]
[1763654609282,1.82,137.96,137.93,11.04502759]
[1763654609492,18.12096,137.97,137.93,11.04502759]
[1763654609670,11.04502759,138.0,137.94,0.66]
[1763654609875,12.86502759,137.99,137.94,0.66]
[1763654610076,12.86502759,137.99,137.94,11.70502759]
[1763654610287,0.47,138.03,137.96,11.04502759]
[1763654610579,39.0881804,138.06,137.94,0.66]
[1763654610580,0.47,138.02,137.95,11.04502759]
[1763654610779,1.82,138.01,137.95,0.66]
[1763654611189,1.82,138.0,137.97,11.04502759]
[1763654611407,1.82,137.99,137.97,11.04502759]
[1763654611580,1.82,137.98,137.97,0.66]
[1763654611891,39.72096,138.03,137.97,0.66]
[1763654611892,1.82,137.99,137.97,11.70502759]
[1763654612062,1.82,137.99,137.98,11.04502759]
[1763654612261,18.12096,138.02,137.98,11.70502759]
[1763654612465,0.47,138.01,137.95,11.04502759]
[1763654612693,1.82,138.0,137.96,11.04502759]
[1763654612889,43.47972624,138.02,137.97,11.04502759]
[1763654612890,1.82,137.99,137.97,11.04502759]
[1763654613096,18.12096,138.02,137.98,11.04502759]
[1763654613293,1.82,138.01,137.96,0.66]
[1763654613592,1.82,138.01,137.97,0.66]
[1763654613808,1.82,138.01,137.98,11.04502759]
[1763654613989,12.86502759,138.01,137.94,0.66]
[1763654614192,11.04502759,137.98,137.93,11.04502759]
[1763654614369,11.04502759,137.98,137.91,0.66]
[1763654614370,1.82,137.97,137.94,11.04502759]
[1763654614776,18.12096,137.98,137.94,0.66]
[1763654614968,7.24586677,138.01,137.96,11.04502759]
[1763654615187,1.82,138.0,137.97,11.04502759]
[1763654615390,1.82,137.99,137.98,11.04502759]
[1763654615701,18.12096,138.01,137.98,11.04502759]
[1763654615702,1.82,138.0,137.98,11.04502759]
[1763654616009,1.82,138.0,137.98,11.70502759]
[1763654616298,1.82,138.0,137.95,0.66]
[1763654616479,1.82,138.0,137.99,11.04502759]
[1763654616805,1.82,138.0,137.98,0.66]
[1763654616967,25.36646545,138.02,137.99,7.29653341]
[1763654617166,1.82,138.01,137.95,0.66]
[1763654617373,1.82,138.01,137.98,7.29653341]
[1763654618108,1.82,138.01,137.95,0.66]
[1763654618109,1.82,138.0,137.97,7.29653341]
[1763654618409,25.41749341,137.98,137.92,7.29653341]
[1763654618610,25.41749341,137.98,137.88,1.93593088]
[1763654618611,9.11653341,137.97,137.88,1.93593088]
[1763654618775,0.47,137.97,137.88,1.93593088]
[1763654618977,18.12096,137.97,137.92,7.29653341]
[1763654619182,18.12096,137.97,137.89,0.66]
[1763654619183,1.82,137.96,137.89,0.66]
[1763654619392,9.11653341,137.96,137.89,0.66]
[1763654619591,1.82,137.96,137.91,7.29653341]
[1763654619800,1.82,137.96,137.88,1.93593088]
[1763654619801,7.25058004,137.92,137.88,1.93593088]
[1763654620004,19.94096,137.91,137.88,1.93593088]
[1763654620322,1.82,137.9,137.89,0.66]
[1763654620520,1.82,137.92,137.89,0.66]
[1763654620724,1.82,137.92,137.88,1.93593088]
[1763654621208,0.47,137.91,137.74,0.1]
[1763654621378,18.12096,137.88,137.83,7.29653341]
[1763654621709,9.11653341,137.87,137.74,25.51017518]
[1763654621915,7.25373567,137.86,137.74,0.1]
[1763654622118,18.12096,137.81,137.74,0.1]
[1763654622317,7.29653341,137.78,137.74,0.1]
[1763654622615,1.82,137.77,137.74,0.1]
[1763654622822,1.82,137.76,137.74,0.1]
[1763654623186,18.12096,137.83,137.74,0.76]
[1763654623514,1.82,137.82,137.74,0.76]
[1763654623698,0.7,137.9,137.75,9.78882769]
[1763654624018,1.82,137.89,137.77,9.78882769]
[1763654624202,9.74046502,137.95,137.78,0.66]
[1763654624408,1.82,137.97,137.79,29.90978768]
[1763654624597,1.82,137.97,137.92,11.08843192]
[1763654624810,1.82,137.97,137.86,9.78882769]
[1763654625012,11.08843192,137.96,137.85,9.78882769]
[1763654625311,18.12096,137.96,137.93,11.08843192]
[1763654625502,18.12096,137.96,137.86,0.66]
[1763654625701,1.82,137.97,137.94,11.08843192]
[1763654625902,1.84,137.98,137.87,9.78882769]
[1763654626133,1.84,137.97,137.93,11.08843192]
[1763654626332,1.84,137.97,137.95,11.08843192]
[1763654626503,1.84,137.97,137.88,9.78882769]
[1763654626907,1.84,137.97,137.84,1.84]
[1763654626908,1.84,137.97,137.85,9.78882769]
[1763654627240,1.84,137.97,137.91,11.08843192]
[1763654627412,18.12096,137.96,137.92,11.08843192]
[1763654627607,18.12096,137.95,137.92,11.08843192]
[1763654627839,7.24952878,137.94,137.87,9.78882769]
[1763654628148,18.12096,137.91,137.79,0.66]
[1763654628308,1.84,137.93,137.86,11.08843192]
[1763654628511,18.12096,137.89,137.79,0.66]
[1763654628707,12.92843192,137.88,137.83,11.08843192]
[1763654629014,18.12096,137.91,137.87,11.08843192]
[1763654629218,18.12096,137.9,137.89,11.08843192]
[1763654629423,1.84,137.91,137.89,11.08843192]
[1763654629626,1.84,137.91,137.83,9.78882769]
[1763654629936,7.25163161,137.9,137.88,11.08843192]
[1763654630141,1.84,137.91,137.89,11.08843192]
[1763654630320,1.84,137.91,137.83,9.78882769]
[1763654630321,1.84,137.91,137.9,11.08843192]
[1763654630712,9.09110579,137.91,137.89,11.08843192]
[1763654631034,27.21887027,137.91,137.88,11.08843192]
[1763654631404,27.21887027,137.91,137.89,11.08843192]
[1763654631820,1.84,137.91,137.9,11.08843192]
[1763654632348,1.82,137.97,137.91,9.78882769]
[1763654632552,1.82,137.99,137.92,0.71]
[1763654632746,1.82,137.99,137.91,9.78882769]
[1763654633046,1.82,137.99,137.97,11.08843192]
[1763654633412,1.82,137.99,137.98,11.08843192]
[1763654633608,1.82,137.99,137.91,10.49882769]
[1763654633844,25.36599506,137.98,137.95,11.08843192]
[1763654634143,25.36599506,137.98,137.85,29.20939192]
[1763654634144,54.57538698,137.98,137.88,9.78882769]
[1763654634343,43.48695506,137.98,137.95,11.08843192]
[1763654635075,43.48695506,137.98,137.97,11.08843192]
[1763654635076,9.06742716,137.98,137.97,11.08843192]
[1763654635376,1.82,137.98,137.97,11.08843192]
[1763654635739,7.24622455,138.01,137.97,11.08843192]
[1763654635942,1.82,138.0,137.99,11.08843192]
[1763654636144,1.82,138.0,137.93,0.71]
[1763654636435,18.12096,137.99,137.95,11.08843192]
[1763654636638,9.78882769,137.98,137.83,0.71]
[1763654636862,9.78882769,137.98,137.79,1.82]
[1763654636863,18.12096,137.93,137.8,0.71]
[1763654637173,1.84,137.92,137.82,18.12096]
[1763654637372,1.84,137.93,137.83,11.62882769]
[1763654637666,1.82,137.97,137.85,9.78882769]
[1763654637866,25.36967235,137.96,137.93,11.08843192]
[1763654638368,1.84,137.96,137.95,11.08843192]
[1763654638738,2.53,137.96,137.87,9.78882769]
[1763654638938,18.12096,137.95,137.86,0.71]
[1763654639171,18.12096,137.95,137.81,2.53]
[1763654639172,11.08843192,137.93,137.81,2.53]
[1763654639341,1.82,137.92,137.88,11.08843192]
[1763654639957,7.24952878,137.94,137.9,11.08843192]
[1763654640163,1.82,137.91,137.9,11.08843192]
[1763654640356,1.82,137.92,137.9,11.08843192]
[1763654640591,25.37350873,137.94,137.91,11.08843192]
[1763654640795,25.37350873,137.94,137.92,11.08843192]
[1763654641289,25.37350873,137.94,137.86,0.71]
[1763654641692,25.37350873,137.94,137.9,11.08843192]
[1763654641865,29.20939192,137.94,137.89,11.08843192]
[1763654642062,18.12096,137.94,137.9,11.08843192]
[1763654642270,18.12096,137.94,137.86,10.49882769]
[1763654642491,18.12096,137.94,137.91,11.08843192]
[1763654642694,18.12096,137.94,137.87,0.71]
[1763654642992,1.82,137.99,137.93,7.30345797]
[1763654643300,1.82,137.99,137.89,9.78882769]
[1763654643301,9.12345797,137.99,137.89,9.78882769]
[1763654643612,7.30345797,137.96,137.87,9.78882769]
[1763654643762,1.82,137.95,137.89,7.30345797]
[1763654643969,25.3751903,137.93,137.89,7.30345797]
[1763654644267,61.62546217,137.93,137.84,0.71]
[1763654644460,7.30345797,137.87,137.77,0.71]
[1763654644661,25.42441797,137.85,137.77,0.71]
[1763654644876,1.82,137.84,137.8,7.30345797]
[1763654645078,1.82,137.84,137.76,0.71]
[1763654645277,61.62546217,137.93,137.77,0.71]
[1763654645278,0.69,137.87,137.77,0.71]
[1763654645560,69.5194595,137.93,137.85,7.30345797]
[1763654645561,1.82,137.86,137.85,7.30345797]
[1763654645766,19.94096,137.9,137.81,9.78882769]
[1763654645973,25.3825513,137.89,137.79,9.78882769]
[1763654646162,1.82,137.9,137.84,7.30345797]
[1763654646364,7.25172808,137.9,137.89,7.30345797]
[1763654646576,1.84,137.91,137.89,7.30345797]
[1763654646782,1.84,137.91,137.9,7.30345797]
[1763654647095,1.84,137.94,137.9,7.30345797]
[1763654647269,1.84,137.94,137.93,7.30345797]
[1763654647685,1.84,137.94,137.88,9.78882769]
[1763654647883,7.25005437,137.93,137.88,0.71]
[1763654648208,7.25005437,137.93,137.91,7.30345797]
[1763654648421,1.84,137.94,137.92,7.30345797]
[1763654648579,9.08955958,137.94,137.88,0.71]
[1763654648779,9.08955958,137.94,137.91,7.30345797]
[1763654649011,9.08955958,137.94,137.76,7.30345797]
[1763654649012,18.12096,137.89,137.76,7.30345797]
[1763654649213,1.82,137.88,137.86,7.30345797]
[1763654649520,18.12096,137.91,137.82,0.71]
[1763654649521,1.84,137.89,137.84,7.30345797]
[1763654649706,1.84,137.89,137.88,7.30345797]
[1763654649884,7.25268349,137.88,137.81,0.71]
[1763654650080,7.25268349,137.88,137.85,7.30345797]
[1763654650300,25.38439222,137.88,137.85,7.30345797]
[1763654650504,25.38439222,137.88,137.76,7.30345797]
[1763654650712,0.69,137.87,137.83,7.30345797]
[1763654651141,0.69,137.87,137.81,7.30345797]
[1763654651142,18.12096,137.85,137.81,7.30345797]
[1763654651411,7.30345797,137.83,137.74,1.94]
[1763654651619,19.96096,137.82,137.75,0.71]
[1763654651803,1.84,137.82,137.81,7.30345797]
[1763654652005,1.84,137.82,137.8,7.30345797]
[1763654652006,7.25636746,137.81,137.8,7.30345797]
[1763654652319,0.69,137.94,137.81,0.71]
[1763654652476,11.84099599,137.95,137.85,9.78882769]
[1763654652477,1.84,137.95,137.85,9.78882769]
[1763654652679,0.69,137.92,137.85,9.78882769]
[1763654652918,1.84,137.91,137.8,0.71]
[1763654653118,7.30345797,137.86,137.81,7.30345797]
[1763654653412,1.84,137.85,137.77,0.71]
[1763654653718,7.30345797,137.83,137.74,0.1]
[1763654653878,14.56065835,137.8,137.76,7.30345797]
[1763654654079,7.25700308,137.8,137.78,7.30345797]
[1763654654387,2.53,137.83,137.76,7.30345797]
[1763654654596,2.53,137.83,137.8,7.30345797]
[1763654654792,0.69,137.82,137.74,0.81]
[1763654655015,0.69,137.82,137.79,7.30345797]
[1763654655224,18.81096,137.82,137.79,7.30345797]
[1763654655429,1.84,137.83,137.8,7.30345797]
[1763654655614,1.84,137.83,137.76,8.01345797]
[1763654655818,18.12096,137.84,137.81,7.30345797]
[1763654656027,18.12096,137.84,137.82,7.30345797]
[1763654656028,7.25531451,137.83,137.82,7.30345797]
[1763654656340,7.94531451,137.83,137.77,9.78882769]
[1763654656639,0.69,137.82,137.78,7.30345797]
[1763654656814,0.69,137.82,137.77,7.30345797]
[1763654657017,0.69,137.82,137.74,0.1]
[1763654657018,7.30345797,137.81,137.76,7.30345797]
[1763654657227,1.84,137.8,137.77,7.30345797]
[1763654657624,68.97363135,137.83,137.79,7.30345797]
[1763654657625,7.25531451,137.83,137.79,7.30345797]
[1763654657838,1.84,137.82,137.78,0.71]
[1763654658008,1.84,137.82,137.81,7.30345797]
[1763654658655,1.84,137.82,137.8,7.30345797]
[1763654658929,1.84,137.82,137.76,7.30345797]
[1763654658930,13.43457735,137.81,137.74,0.1]
[1763654659129,13.43457735,137.81,137.76,12.74457735]
[1763654659343,0.69,137.8,137.76,12.74457735]
[1763654659513,0.69,137.8,137.74,0.1]
[1763654659834,0.69,137.8,137.76,12.74457735]
[1763654660047,7.25742071,137.79,137.77,12.74457735]
[1763654660244,7.25708447,137.8,137.74,0.79]
[1763654660537,1.84,137.8,137.78,12.74457735]
[1763654660744,2.55,137.8,137.77,12.74457735]
[1763654661035,0.71,137.79,137.74,0.1]
[1763654661239,0.71,137.79,137.75,12.74457735]
[1763654661420,0.71,137.79,137.74,0.1]
[1763654661421,1.84,137.78,137.74,0.1]
[1763654661730,1.84,137.78,137.76,12.74457735]
[1763654661938,0.71,137.79,137.76,12.74457735]
[1763654662120,9.09794745,137.78,137.76,12.74457735]
[1763654662322,27.24281608,137.78,137.74,0.1]
[1763654662534,27.95281608,137.78,137.75,12.74457735]
[1763654662846,1.84,137.78,137.76,12.74457735]
[1763654663146,0.71,137.77,137.74,0.1]
[1763654663441,0.71,137.77,137.76,12.74457735]
[1763654663625,0.71,137.77,137.75,12.74457735]
[1763654663829,1.84,137.78,137.75,12.74457735]
[1763654664142,25.40834845,137.75,137.71,12.74457735]
[1763654664344,1.84,137.74,137.68,0.69]
[1763654664549,1.84,137.74,137.71,12.74457735]
[1763654664918,1.84,137.74,137.72,12.74457735]
[1763654665121,1.84,137.74,137.73,12.74457735]
[1763654665345,0.71,137.76,137.73,12.74457735]
[1763654665541,2.55,137.75,137.68,0.69]
[1763654665936,0.71,137.74,137.62,18.12096]
[1763654666116,7.26058229,137.73,137.7,12.74457735]
[1763654666318,1.84,137.72,137.66,0.69]
[1763654666519,1.84,137.72,137.69,12.74457735]
[1763654666759,1.84,137.72,137.66,0.69]
[1763654666916,1.84,137.72,137.66,7.95416446]
[1763654667123,1.84,137.72,137.71,12.74457735]
[1763654667645,1.84,137.72,137.67,0.69]
[1763654667825,1.84,137.72,137.7,12.74457735]
[1763654668020,1.84,137.74,137.71,12.74457735]
[1763654668241,1.84,137.74,137.73,12.74457735]
[1763654668433,9.10013953,137.74,137.68,0.69]
[1763654668629,9.10013953,137.74,137.72,12.74457735]
[1763654668861,27.25027747,137.74,137.7,12.74457735]
[1763654669150,13.45457735,137.73,137.65,0.69]
[1763654669350,18.2170592,137.72,137.67,12.74457735]
[1763654669555,19.96096,137.71,137.67,12.74457735]
[1763654669853,33.37553735,137.71,137.66,12.74457735]
[1763654670074,2.51,137.71,137.68,12.74457735]
[1763654670284,18.79096,137.75,137.7,12.74457735]
[1763654670561,18.79096,137.75,137.64,9.78882769]
[1763654670562,1.84,137.74,137.64,9.78882769]
[1763654670732,1.84,137.74,137.65,0.68]
[1763654671066,2.51,137.74,137.7,12.74457735]
[1763654671235,2.51,137.74,137.67,0.68]
[1763654671567,14.58457735,137.74,137.67,0.68]
[1763654671865,0.67,137.73,137.69,12.74457735]
[1763654672071,0.67,137.73,137.61,1.84]
[1763654672072,25.41757443,137.7,137.66,12.74457735]
[1763654672243,25.41757443,137.7,137.62,0.68]
[1763654672244,1.84,137.69,137.62,0.68]
[1763654672442,25.41757443,137.7,137.66,12.74457735]
[1763654672749,1.84,137.69,137.64,0.68]
[1763654672932,1.84,137.69,137.67,12.74457735]
[1763654673561,0.67,137.68,137.61,10.46882769]
[1763654673765,1.84,137.69,137.66,12.74457735]
[1763654674271,7.26321905,137.68,137.66,12.74457735]